bitfinex/quotes_BTCUSD_20241119
["timestamp","ask_amount","ask_price","bid_price","bid_amount"]
[1732047941554,0.25,92887.0,92886.0,0.064595]
[1732047941822,0.25,92887.0,92886.0,0.0710545]
[1732047942538,0.25,92887.0,92886.0,0.18011705]
[1732047942777,0.0017154,92893.0,92892.0,0.064591]
[1732047943026,0.0017154,92893.0,92892.0,0.20665355]
[1732047943264,0.0017154,92893.0,92892.0,0.24734316]
[1732047943731,0.0017154,92893.0,92892.0,0.22434316]
[1732047944674,0.0017154,92893.0,92892.0,0.064591]
[1732047946711,0.0017154,92893.0,92892.0,0.17365355]
[1732047947207,0.0017154,92893.0,92888.0,0.064593]
[1732047947436,0.0017154,92893.0,92892.0,0.064591]
[1732047947873,0.0017154,92893.0,92881.0,0.075364]
[1732047948077,0.0017154,92893.0,92892.0,0.064591]
[1732047948286,0.0017154,92893.0,92892.0,0.0710501]
[1732047949148,0.0017154,92893.0,92892.0,0.18011265]
[1732047949382,0.0017154,92893.0,92889.0,0.075358]
[1732047949595,0.0017154,92893.0,92892.0,0.064591]
[1732047949802,0.0017154,92893.0,92892.0,0.0861216]
[1732047950010,0.0066754,92893.0,92892.0,0.0861216]
[1732047950219,0.0066754,92893.0,92884.0,0.075362]
[1732047950499,0.0066754,92893.0,92888.0,0.064593]
[1732047950707,0.0066754,92893.0,92891.0,0.064591]
[1732047950930,0.0066754,92893.0,92892.0,0.064591]
[1732047951354,0.0066754,92893.0,92889.0,0.064592]
[1732047951806,0.0066754,92893.0,92891.0,0.064591]
[1732047952028,0.2853114,92905.0,92892.0,0.01452558]
[1732047952237,0.1776754,92905.0,92899.0,0.064586]
[1732047952456,0.25,92904.0,92900.0,0.064585]
[1732047952677,0.25,92904.0,92903.0,0.064583]
[1732047953319,0.25,92904.0,92882.0,0.01]
[1732047953533,0.01,92902.0,92880.0,0.01844306]
[1732047953744,0.01,92902.0,92888.0,0.064593]
[1732047953950,0.01,92896.0,92876.0,0.075368]
[1732047954220,0.01,92893.0,92873.0,0.000855]
[1732047954468,0.01,92888.0,92873.0,0.000855]
[1732047954731,0.01,92880.0,92873.0,0.000855]
[1732047954973,0.10906255,92887.0,92873.0,0.000855]
[1732047954974,0.107672,92874.0,92873.0,0.000855]
[1732047955475,0.106672,92874.0,92873.0,0.000855]
[1732047955654,0.225338,92877.0,92873.0,0.000855]
[1732047955917,0.107672,92875.0,92873.0,0.000855]
[1732047956135,0.225338,92877.0,92873.0,0.000855]
[1732047956344,0.107672,92874.0,92873.0,0.000855]
[1732047956555,0.25,92882.0,92881.0,0.064598]
[1732047956775,0.25,92882.0,92881.0,0.0064598]
[1732047956986,0.25,92882.0,92875.0,0.064602]
[1732047957201,0.25,92882.0,92873.0,0.065459]
[1732047957409,0.215324,92884.0,92874.0,0.064603]
[1732047957617,0.25,92886.0,92873.0,0.065459]
[1732047957618,0.357659,92886.0,92878.0,0.0646]
[1732047957847,0.357659,92886.0,92875.0,0.01955257]
[1732047957848,0.10766,92885.0,92876.0,0.064602]
[1732047958294,0.10766,92885.0,92877.0,0.064601]
[1732047958530,0.357659,92886.0,92878.0,0.0646]
[1732047958764,0.357659,92886.0,92879.0,0.0130059]
[1732047959007,0.215322,92885.0,92873.0,0.000855]
[1732047959249,0.117672,92874.0,92873.0,0.000855]
[1732047959727,0.465332,92880.0,92875.0,0.064602]
[1732047959728,0.25,92880.0,92875.0,0.064602]
[1732047959963,0.357666,92880.0,92876.0,0.00663147]
[1732047960213,0.25,92880.0,92876.0,0.064601]
[1732047960454,0.107664,92882.0,92874.0,0.064603]
[1732047960832,0.01,92886.0,92875.0,0.01309217]
[1732047960833,0.107661,92884.0,92875.0,0.01309217]
[1732047961073,0.01,92887.0,92873.0,0.000855]
[1732047961296,0.107663,92882.0,92873.0,0.065458]
[1732047961544,0.25,92877.0,92876.0,0.064602]
[1732047962274,0.25,92877.0,92876.0,0.08415397]
[1732047963369,0.25,92877.0,92876.0,0.17366455]
[1732047963371,0.00171,92893.0,92892.0,0.064591]
[1732047966795,0.01,92891.0,92875.0,0.064602]
[1732047967009,0.21532,92885.0,92874.0,0.064603]
[1732047967281,0.107672,92874.0,92863.0,0.06461]
[1732047967502,0.117672,92874.0,92862.0,0.064611]
[1732047967716,0.465333,92879.0,92857.0,0.064615]
[1732047967717,0.26,92879.0,92857.0,0.064615]
[1732047967921,0.25,92879.0,92873.0,0.065459]
[1732047968134,0.25,92879.0,92878.0,0.0646]
[1732047968344,0.25,92885.0,92873.0,0.000855]
[1732047968565,0.25,92885.0,92884.0,0.064596]
[1732047969161,0.25,92885.0,92880.0,0.064599]
[1732047969365,0.04747684,92893.0,92890.0,0.064592]
[1732047969366,0.03747684,92893.0,92890.0,0.064592]
[1732047969571,0.03747684,92893.0,92874.0,0.064603]
[1732047969572,0.00171,92893.0,92892.0,0.064591]
[1732047972883,0.00171,92893.0,92892.0,0.17365355]
[1732047976981,0.00171,92893.0,92892.0,0.19665355]
[1732047977206,0.00171,92893.0,92892.0,0.33505355]
[1732047977422,0.215204,92936.0,92892.0,0.33505355]
[1732047977423,0.01,92933.0,92904.0,0.1849217]
[1732047977646,0.01,92934.0,92927.0,0.075327]
[1732047977855,0.03485861,92935.0,92934.0,0.064561]
[1732047978077,0.01,92934.0,92910.0,0.064578]
[1732047978296,0.01,92924.0,92907.0,0.06458]
[1732047978528,0.107628,92912.0,92906.0,0.064581]
[1732047978736,0.01,92923.0,92888.0,0.01]
[1732047978951,0.10762,92919.0,92913.0,0.064576]
[1732047979152,0.10762,92919.0,92907.0,0.075343]
[1732047979153,0.215234,92922.0,92910.0,0.064578]
[1732047979280,0.01,92915.0,92889.0,0.10906255]
[1732047979487,0.107629,92912.0,92907.0,0.06458]
[1732047979691,0.107629,92912.0,92889.0,0.10906255]
[1732047979692,0.107629,92912.0,92905.0,0.064581]
[1732047979906,0.215252,92914.0,92905.0,0.064581]
[1732047980119,0.107629,92912.0,92906.0,0.064581]
[1732047980328,0.25,92908.0,92904.0,0.064582]
[1732047980753,0.25,92908.0,92906.0,0.064581]
[1732047980954,0.25,92908.0,92907.0,0.06458]
[1732047981415,0.25,92918.0,92914.0,0.064575]
[1732047981545,0.107624,92916.0,92910.0,0.064578]
[1732047981753,0.25,92918.0,92910.0,0.064578]
[1732047981964,0.01,92917.0,92898.0,0.07535]
[1732047982178,0.01,92917.0,92904.0,0.064582]
[1732047982385,0.01,92917.0,92907.0,0.06458]
[1732047982386,0.25,92910.0,92907.0,0.06458]
[1732047982996,0.25,92910.0,92909.0,0.064579]
[1732047983424,0.25,92922.0,92907.0,0.10906255]
[1732047983635,0.357617,92922.0,92916.0,0.064573]
[1732047983848,0.25,92922.0,92920.0,0.064571]
[1732047984020,0.25,92922.0,92921.0,0.06457]
[1732047984454,0.25,92940.0,92921.0,0.10906255]
[1732047984661,0.01,92938.0,92922.0,0.064569]
[1732047984855,0.01,92938.0,92928.0,0.064565]
[1732047985065,0.25,92940.0,92916.0,0.10906255]
[1732047985278,0.107597,92939.0,92934.0,0.064561]
[1732047985484,0.107597,92939.0,92934.0,0.129122]
[1732047985701,0.107597,92939.0,92934.0,0.064561]
[1732047986111,0.01,92942.0,92934.0,0.064561]
[1732047986337,0.107596,92940.0,92935.0,0.064561]
[1732047986541,0.25,92942.0,92937.0,0.064559]
[1732047986749,0.25,92942.0,92916.0,0.10906255]
[1732047986959,0.107596,92940.0,92930.0,0.075325]
[1732047987169,0.25,92942.0,92933.0,0.064562]
[1732047987381,0.107595,92941.0,92936.0,0.06456]
[1732047987633,0.25,92946.0,92943.0,0.064555]
[1732047987834,0.25,92946.0,92945.0,0.064554]
[1732047988465,0.03473893,92951.0,92945.0,0.064554]
[1732047988690,0.107584,92950.0,92945.0,0.064554]
[1732047989302,0.107584,92950.0,92943.0,0.075314]
[1732047989510,0.107584,92950.0,92945.0,0.064554]
[1732047990265,0.26,92954.0,92945.0,0.064553]
[1732047990474,0.01,92954.0,92945.0,0.064553]
[1732047990713,0.107582,92953.0,92946.0,0.064553]
[1732047990922,0.26,92956.0,92917.0,0.023]
[1732047991132,0.26,92956.0,92947.0,0.064552]
[1732047991353,0.26,92956.0,92928.0,0.075326]
[1732047991354,0.29457626,92956.0,92928.0,0.075326]
[1732047991562,0.107584,92950.0,92944.0,0.064554]
[1732047991766,0.215157,92955.0,92945.0,0.064553]
[1732047991975,0.21516,92954.0,92935.0,0.075321]
[1732047992187,0.107583,92952.0,92945.0,0.064553]
[1732047992400,0.107583,92952.0,92946.0,0.064553]
[1732047992626,0.107583,92952.0,92943.0,0.064555]
[1732047992627,0.215162,92953.0,92941.0,0.075316]
[1732047992835,0.25,92954.0,92944.0,0.064554]
[1732047993061,0.107585,92950.0,92944.0,0.064554]
[1732047993268,0.107585,92950.0,92887.0,0.24023778]
[1732047993269,0.01,92942.0,92904.0,0.01]
[1732047993474,0.01,92942.0,92905.0,0.10906255]
[1732047993687,0.225188,92942.0,92905.0,0.10906255]
[1732047993895,0.107607,92931.0,92925.0,0.064567]
[1732047994106,0.107607,92931.0,92905.0,0.10906255]
[1732047994107,0.215194,92939.0,92929.0,0.064565]
[1732047994315,0.21519,92941.0,92931.0,0.064563]
[1732047994525,0.107601,92936.0,92931.0,0.064563]
[1732047995190,0.107601,92936.0,92929.0,0.064565]
[1732047995191,0.21519,92941.0,92929.0,0.064565]
[1732047995404,0.107601,92936.0,92931.0,0.064563]
[1732047996091,0.107602,92935.0,92929.0,0.129129]
[1732047996318,0.21519,92941.0,92906.0,0.023]
[1732047996528,0.21519,92941.0,92930.0,0.064564]
[1732047996529,0.107601,92936.0,92930.0,0.064564]
[1732047996740,0.107602,92935.0,92919.0,0.075333]
[1732047996961,0.107602,92935.0,92929.0,0.064564]
[1732047997191,0.107601,92936.0,92930.0,0.064564]
[1732047997451,0.107602,92935.0,92930.0,0.064564]
[1732047997904,0.25,92936.0,92915.0,0.075337]
[1732047998140,0.25,92936.0,92916.0,0.10906255]
[1732047998643,0.25,92937.0,92916.0,0.10906255]
[1732047998873,0.107601,92936.0,92931.0,0.064563]
[1732047999097,0.107603,92935.0,92930.0,0.064564]
[1732048000282,0.107603,92935.0,92916.0,0.10906255]
[1732048000283,0.25,92938.0,92916.0,0.10906255]
[1732048000505,0.23196556,92919.0,92918.0,0.0008546]
[1732048000733,0.10762,92919.0,92918.0,0.0008546]
[1732048001516,0.35762,92919.0,92918.0,0.0008546]
[1732048001762,0.36762,92919.0,92918.0,0.0008546]
[1732048003417,0.47668255,92919.0,92918.0,0.0008546]
[1732048005637,0.49772644,92919.0,92918.0,0.0008546]
[1732048005873,0.51146661,92919.0,92918.0,0.0008546]
[1732048006605,0.53117252,92919.0,92918.0,0.0008546]
[1732048007097,0.42210997,92919.0,92918.0,0.0008546]
[1732048008080,0.30448997,92919.0,92918.0,0.0008546]
[1732048008299,0.28478406,92919.0,92918.0,0.0008546]
[1732048008523,0.03478406,92919.0,92918.0,0.0008546]
[1732048008772,0.22668255,92919.0,92918.0,0.0008546]
[1732048008997,0.30738255,92919.0,92918.0,0.0008546]
[1732048010403,0.55738255,92919.0,92918.0,0.0008546]
[1732048010652,0.55738255,92919.0,92892.0,0.0008549]
[1732048010653,0.107647,92897.0,92892.0,0.0008549]
[1732048010880,0.107637,92905.0,92896.0,0.064588]
[1732048011116,0.01,92907.0,92892.0,0.0654449]
[1732048011342,0.107635,92906.0,92898.0,0.064586]
[1732048011605,0.01,92915.0,92908.0,0.064579]
[1732048011832,0.01,92915.0,92907.0,0.06458]
[1732048012046,0.278624,92916.0,92907.0,0.12916]
[1732048012257,0.171,92916.0,92898.0,0.0488]
[1732048012471,0.215219,92929.0,92899.0,0.10906255]
[1732048012472,0.215228,92925.0,92899.0,0.10906255]
[1732048012691,0.01969562,92928.0,92919.0,0.064572]
[1732048012692,0.12730562,92928.0,92919.0,0.064572]
[1732048012893,0.01969609,92928.0,92922.0,0.06457]
[1732048013099,0.25,92929.0,92900.0,0.064585]
[1732048013339,0.25,92929.0,92920.0,0.064571]
[1732048013548,0.359311,92935.0,92923.0,0.064569]
[1732048013954,0.359311,92935.0,92929.0,0.064564]
[1732048013955,0.251709,92935.0,92929.0,0.064564]
[1732048014157,0.251709,92935.0,92928.0,0.064565]
[1732048014372,0.251709,92935.0,92925.0,0.064567]
[1732048014373,0.001709,92935.0,92925.0,0.064567]
[1732048014628,0.001709,92935.0,92929.0,0.064564]
[1732048014853,0.03669479,92935.0,92925.0,0.064567]
[1732048015075,0.001709,92935.0,92934.0,0.064561]
[1732048016202,0.001709,92935.0,92934.0,0.17362355]
[1732048016681,0.001709,92935.0,92934.0,0.25032355]
[1732048017106,0.001709,92935.0,92934.0,0.26032355]
[1732048017332,0.001709,92935.0,92934.0,0.29332355]
[1732048019117,0.001709,92935.0,92934.0,0.27032355]
[1732048020183,0.001709,92935.0,92934.0,0.17362355]
[1732048020859,0.001709,92935.0,92923.0,0.078]
[1732048021058,0.001709,92935.0,92924.0,0.064568]
[1732048021271,0.001709,92935.0,92913.0,0.10906255]
[1732048021497,0.001709,92935.0,92915.0,0.064575]
[1732048021708,0.109311,92935.0,92928.0,0.064565]
[1732048021913,0.109311,92935.0,92925.0,0.064567]
[1732048021914,0.107607,92931.0,92925.0,0.064567]
[1732048022124,0.107607,92931.0,92902.0,0.01]
[1732048022125,0.215206,92934.0,92917.0,0.064573]
[1732048022325,0.107617,92922.0,92916.0,0.064574]
[1732048022533,0.107617,92922.0,92915.0,0.064574]
[1732048022534,0.107611,92927.0,92920.0,0.064571]
[1732048022663,0.215222,92927.0,92912.0,0.064576]
[1732048022862,0.215222,92927.0,92901.0,0.10906255]
[1732048022863,0.215227,92925.0,92913.0,0.064576]
[1732048023082,0.215227,92925.0,92901.0,0.10906255]
[1732048023083,0.10906255,92924.0,92901.0,0.064584]
[1732048023285,0.25,92920.0,92896.0,0.064587]
[1732048023472,0.107636,92906.0,92898.0,0.064586]
[1732048023677,0.107636,92906.0,92896.0,0.064587]
[1732048023893,0.322901,92908.0,92897.0,0.064587]
[1732048024093,0.107633,92909.0,92899.0,0.064585]
[1732048024339,0.215254,92914.0,92897.0,0.064587]
[1732048024541,0.107633,92908.0,92899.0,0.064586]
[1732048024770,0.215257,92912.0,92899.0,0.064586]
[1732048024980,0.215254,92914.0,92899.0,0.064586]
[1732048025179,0.107633,92908.0,92899.0,0.064586]
[1732048025389,0.107633,92908.0,92875.0,0.064602]
[1732048025390,0.40018359,92937.0,92907.0,0.06458]
[1732048025658,0.107628,92913.0,92904.0,0.064582]
[1732048025876,0.215226,92926.0,92914.0,0.064575]
[1732048026079,0.14316923,92925.0,92915.0,0.064574]
[1732048026292,0.35762,92920.0,92911.0,0.064577]
[1732048026495,0.107618,92921.0,92903.0,0.064583]
[1732048026743,0.107621,92919.0,92909.0,0.064578]
[1732048026940,0.215236,92921.0,92909.0,0.064578]
[1732048027141,0.107621,92919.0,92909.0,0.064578]
[1732048027544,0.107621,92919.0,92909.0,0.064579]
[1732048028232,0.25,92920.0,92912.0,0.064576]
[1732048028430,0.03471484,92922.0,92921.0,0.06457]
[1732048028608,0.25,92923.0,92889.0,0.01]
[1732048028860,0.25,92923.0,92885.0,0.18498359]
[1732048028861,0.25,92923.0,92896.0,0.10906255]
[1732048029060,0.107622,92918.0,92909.0,0.064578]
[1732048029274,0.107622,92918.0,92910.0,0.064578]
[1732048029538,0.28532963,92923.0,92896.0,0.10906255]
[1732048029539,0.03532963,92923.0,92915.0,0.064575]
[1732048029758,0.03532963,92923.0,92915.0,0.129148]
[1732048029945,0.25,92928.0,92896.0,0.10906255]
[1732048030159,0.25,92928.0,92921.0,0.06457]
[1732048030356,0.25,92928.0,92919.0,0.064572]
[1732048030614,0.25,92928.0,92898.0,0.064586]
[1732048030615,0.25,92928.0,92915.0,0.064574]
[1732048031032,0.25,92928.0,92916.0,0.064574]
[1732048031908,0.25,92928.0,92913.0,0.064576]
[1732048032092,0.25,92928.0,92890.0,0.074592]
[1732048032093,0.25,92928.0,92917.0,0.064573]
[1732048032313,0.25,92928.0,92918.0,0.064572]
[1732048032517,0.25,92928.0,92917.0,0.064573]
[1732048032743,0.25,92928.0,92890.0,0.11031287]
[1732048032744,0.18846255,92927.0,92871.0,0.19584129]
[1732048032850,0.19846255,92927.0,92893.0,0.06459]
[1732048033056,0.01,92917.0,92871.0,0.0008577]
[1732048033263,0.215264,92909.0,92889.0,0.064592]
[1732048033510,0.107635,92906.0,92889.0,0.064592]
[1732048033716,0.21669455,92909.0,92894.0,0.064589]
[1732048033922,0.5935,92925.0,92882.0,0.064597]
[1732048034142,0.322854,92921.0,92904.0,0.064582]
[1732048034348,0.25,92918.0,92907.0,0.06458]
[1732048034547,0.25,92918.0,92905.0,0.064582]
[1732048034799,0.25,92918.0,92909.0,0.064578]
[1732048035344,0.25,92918.0,92909.0,0.129156]
[1732048035678,0.25,92918.0,92910.0,0.064578]
[1732048035891,0.25,92918.0,92913.0,0.064576]
[1732048036310,0.28506026,92925.0,92917.0,0.064573]
[1732048036511,0.215234,92922.0,92913.0,0.0017092]
[1732048036743,0.107623,92917.0,92913.0,0.0017092]
[1732048036980,0.215234,92922.0,92913.0,0.0017092]
[1732048037152,0.107623,92917.0,92913.0,0.0017092]
[1732048037395,0.107622,92918.0,92913.0,0.0017092]
[1732048037519,0.25,92921.0,92913.0,0.0017092]
[1732048038352,0.14267326,92925.0,92915.0,0.064574]
[1732048038547,0.14267326,92925.0,92913.0,0.0017092]
[1732048038548,0.107626,92914.0,92913.0,0.0017092]
[1732048038747,0.21668855,92914.0,92913.0,0.0017092]
[1732048038952,0.01,92930.0,92913.0,0.0017092]
[1732048039151,0.215236,92921.0,92913.0,0.0017092]
[1732048039351,0.25,92914.0,92913.0,0.0017092]
[1732048040154,0.25,92914.0,92913.0,0.0662852]
[1732048040356,0.25,92920.0,92913.0,0.0017092]
[1732048040757,0.215241,92919.0,92913.0,0.0017092]
[1732048041188,0.25,92920.0,92913.0,0.0017092]
[1732048041534,0.107624,92916.0,92913.0,0.0017092]
[1732048041741,0.107626,92914.0,92913.0,0.0017092]
[1732048042632,0.21668855,92914.0,92913.0,0.0017092]
[1732048042842,0.10906255,92914.0,92913.0,0.0017092]
[1732048043051,0.21668855,92914.0,92913.0,0.0017092]
[1732048043514,0.46668855,92914.0,92913.0,0.0017092]
[1732048045049,0.50188698,92914.0,92913.0,0.0017092]
[1732048046718,0.58018698,92914.0,92913.0,0.0017092]
[1732048048205,0.50188698,92914.0,92913.0,0.0017092]
[1732048048419,0.39282443,92914.0,92913.0,0.0017092]
[1732048049504,0.14282443,92914.0,92913.0,0.0017092]
[1732048049770,0.03519843,92914.0,92913.0,0.0017092]
[1732048050198,0.25,92916.0,92913.0,0.0662852]
[1732048050412,0.03560224,92916.0,92913.0,0.0017092]
[1732048050850,0.2508546,92919.0,92913.0,0.0662852]
[1732048051054,0.28504561,92919.0,92913.0,0.0017092]
[1732048051479,0.03504561,92919.0,92913.0,0.0017092]
[1732048051683,0.03504561,92919.0,92918.0,0.064573]
[1732048051891,0.0008546,92919.0,92918.0,0.064573]
[1732048052792,0.0008546,92919.0,92918.0,0.0661427]
[1732048053007,0.0008546,92919.0,92918.0,0.064573]
[1732048053439,0.0008546,92919.0,92918.0,0.17363555]
[1732048053652,0.0008546,92919.0,92918.0,0.25373555]
[1732048054513,0.001709,92935.0,92922.0,0.01]
[1732048054752,0.001709,92935.0,92934.0,0.064561]
[1732048055875,0.001709,92935.0,92934.0,0.17362355]
[1732048056738,0.001709,92935.0,92934.0,0.064561]
[1732048056958,0.001709,92935.0,92918.0,0.1297]
[1732048057167,0.12441141,92946.0,92931.0,0.064563]
[1732048057372,0.357589,92946.0,92938.0,0.064559]
[1732048057587,0.25,92946.0,92938.0,0.064559]
[1732048057841,0.25,92946.0,92945.0,0.064554]
[1732048058506,4e-05,92950.0,92949.0,0.064551]
[1732048058935,4e-05,92950.0,92946.0,0.064553]
[1732048059160,0.107625,92950.0,92937.0,0.064559]
[1732048059380,4e-05,92950.0,92937.0,0.064559]
[1732048059594,0.32427255,92950.0,92922.0,0.064569]
[1732048059812,0.32427255,92950.0,92910.0,0.0017092]
[1732048059813,0.107599,92937.0,92919.0,0.17363455]
[1732048060017,0.12441141,92946.0,92924.0,0.064568]
[1732048060253,0.10906255,92949.0,92930.0,0.064564]
[1732048060466,0.107595,92941.0,92930.0,0.064564]
[1732048060687,0.10906255,92949.0,92925.0,0.064568]
[1732048060895,0.10906255,92949.0,92929.0,0.064564]
[1732048060896,0.107595,92941.0,92929.0,0.064564]
[1732048061324,0.10906255,92949.0,92926.0,0.064566]
[1732048061531,0.25,92939.0,92929.0,0.064564]
[1732048061762,0.25,92939.0,92930.0,0.064564]
[1732048062184,0.465195,92939.0,92927.0,0.064566]
[1732048062655,0.107601,92936.0,92928.0,0.064566]
[1732048062886,0.25,92938.0,92929.0,0.064564]
[1732048063088,0.25,92938.0,92931.0,0.064563]
[1732048063500,0.107604,92933.0,92918.0,0.18916255]
[1732048063717,0.107604,92933.0,92928.0,0.064566]
[1732048063919,0.107604,92933.0,92927.0,0.064566]
[1732048063920,0.215204,92935.0,92927.0,0.064566]
[1732048064128,0.107602,92935.0,92929.0,0.064564]
[1732048064335,0.107604,92934.0,92918.0,0.25373455]
[1732048064629,0.215199,92937.0,92928.0,0.12913]
[1732048064785,0.107603,92934.0,92929.0,0.064565]
[1732048065018,0.25,92938.0,92929.0,0.064565]
[1732048065019,0.107601,92936.0,92931.0,0.064563]
[1732048065206,0.107604,92933.0,92927.0,0.064566]
[1732048065403,0.215201,92936.0,92927.0,0.064566]
[1732048065615,0.107604,92934.0,92929.0,0.064564]
[1732048065782,0.107604,92934.0,92920.0,0.064571]
[1732048065783,0.107604,92934.0,92930.0,0.064564]
[1732048065984,0.107601,92936.0,92930.0,0.064564]
[1732048066392,0.2847132,92938.0,92924.0,0.064568]
[1732048066719,0.107604,92934.0,92928.0,0.064565]
[1732048066916,0.10906255,92933.0,92891.0,0.0755]
[1732048067319,0.10906255,92933.0,92907.0,0.06458]
[1732048067509,0.215213,92931.0,92914.0,0.064575]
[1732048067880,0.21523,92924.0,92915.0,0.064574]
[1732048068093,0.215213,92931.0,92915.0,0.064574]
[1732048068305,0.215213,92931.0,92915.0,0.064575]
[1732048068306,0.107618,92921.0,92915.0,0.064575]
[1732048068733,0.215225,92926.0,92915.0,0.064575]
[1732048068949,0.215229,92924.0,92916.0,0.064574]
[1732048069159,0.107617,92922.0,92916.0,0.064574]
[1732048069372,0.107617,92922.0,92913.0,0.0017092]
[1732048069592,0.107617,92922.0,92913.0,0.0662852]
[1732048069825,0.107618,92921.0,92913.0,0.1308602]
[1732048070257,0.107618,92921.0,92913.0,0.0662842]
[1732048070467,0.107618,92921.0,92914.0,0.064575]
[1732048070886,0.25,92925.0,92913.0,0.0662842]
[1732048070887,0.25,92925.0,92913.0,0.0017092]
[1732048071097,0.25,92925.0,92922.0,0.064569]
[1732048071315,0.25,92925.0,92923.0,0.064569]
[1732048071523,0.215215,92931.0,92923.0,0.064569]
[1732048071765,0.107607,92930.0,92923.0,0.064569]
[1732048071975,0.018607,92930.0,92924.0,0.064568]
[1732048072185,0.03514703,92931.0,92924.0,0.064568]
[1732048072398,0.03514703,92931.0,92923.0,0.064569]
[1732048072649,0.25,92934.0,92925.0,0.064567]
[1732048072861,0.107607,92931.0,92924.0,0.064568]
[1732048073295,0.25,92934.0,92913.0,0.17534775]
[1732048073296,0.215211,92932.0,92913.0,0.17534775]
[1732048073513,0.107619,92921.0,92913.0,0.0017092]
[1732048073726,0.10906255,92931.0,92913.0,0.0662852]
[1732048073963,0.10906255,92931.0,92913.0,0.0017092]
[1732048074192,0.107624,92916.0,92913.0,0.0017092]
[1732048074419,0.25,92925.0,92913.0,0.0017092]
[1732048074632,0.107623,92917.0,92913.0,0.0017092]
[1732048074841,0.25,92925.0,92914.0,0.075338]
[1732048075048,0.107619,92920.0,92914.0,0.075338]
[1732048075275,0.107619,92920.0,92915.0,0.075337]
[1732048076176,0.107618,92921.0,92915.0,0.075337]
[1732048076405,0.107618,92921.0,92916.0,0.075336]
[1732048076622,0.25,92925.0,92913.0,0.0017092]
[1732048076832,0.25,92925.0,92922.0,0.075331]
[1732048077055,0.25,92925.0,92921.0,0.075332]
[1732048077281,0.25,92925.0,92913.0,0.0017092]
[1732048077502,0.215219,92929.0,92919.0,0.075333]
[1732048077828,0.25,92930.0,92913.0,0.0017092]
[1732048078035,0.25,92930.0,92929.0,0.075326]
[1732048078497,0.107606,92932.0,92916.0,0.075336]
[1732048078735,0.25,92935.0,92914.0,0.0807]
[1732048078999,0.25,92935.0,92934.0,0.075322]
[1732048079241,0.25,92935.0,92932.0,0.075323]
[1732048079465,0.25,92937.0,92915.0,0.10906255]
[1732048079700,0.25,92937.0,92932.0,0.075323]
[1732048079932,0.215202,92936.0,92915.0,0.10906255]
[1732048080175,0.107605,92933.0,92926.0,0.075327]
[1732048080436,0.107602,92935.0,92926.0,0.075327]
[1732048080656,0.107602,92935.0,92929.0,0.075325]
[1732048080897,0.107602,92935.0,92914.0,0.0807]
[1732048080898,0.215203,92936.0,92914.0,0.0807]
[1732048081152,0.107604,92933.0,92927.0,0.075327]
[1732048081629,0.215206,92934.0,92923.0,0.07533]
[1732048081890,0.01979364,92937.0,92914.0,0.0807]
[1732048081891,0.107607,92931.0,92924.0,0.07533]
[1732048082138,0.215204,92935.0,92932.0,0.075323]
[1732048082139,0.01979364,92935.0,92932.0,0.075323]
[1732048082388,0.23499242,92937.0,92927.0,0.075327]
[1732048082615,0.01979242,92937.0,92928.0,0.075326]
[1732048082841,0.107603,92934.0,92929.0,0.075326]
[1732048083065,0.25,92938.0,92914.0,0.0807]
[1732048083066,0.25,92938.0,92920.0,0.075332]
[1732048083316,0.25,92938.0,92930.0,0.075324]
[1732048083538,0.357599,92938.0,92931.0,0.075324]
[1732048083782,0.25,92938.0,92934.0,0.075321]
[1732048084042,0.25,92938.0,92937.0,0.075319]
[1732048084305,0.25,92938.0,92933.0,0.05991223]
[1732048084536,0.03626601,92940.0,92939.0,0.075318]
[1732048084775,0.0008544,92940.0,92939.0,0.075318]
[1732048085956,0.0008544,92940.0,92939.0,0.204118]
[1732048086188,0.0008544,92940.0,92939.0,0.31318055]
[1732048086484,0.0008544,92940.0,92939.0,0.204118]
[1732048086730,0.0008544,92940.0,92923.0,0.01]
[1732048086731,0.03520788,92940.0,92919.0,0.075333]
[1732048086994,0.107608,92930.0,92913.0,0.0843092]
[1732048087242,0.0008544,92940.0,92913.0,0.0843092]
[1732048087494,0.0008544,92940.0,92939.0,0.075318]
[1732048088240,0.0008544,92940.0,92937.0,0.075319]
[1732048088515,0.0008544,92940.0,92939.0,0.075318]
[1732048088771,0.0008544,92940.0,92939.0,0.26398055]
[1732048089519,0.0008544,92940.0,92939.0,0.04217826]
[1732048089746,0.0008544,92940.0,92939.0,0.11749626]
[1732048090251,0.0008544,92940.0,92939.0,0.12749626]
[1732048092685,0.0008544,92940.0,92939.0,0.20779626]
[1732048093438,0.0008544,92940.0,92939.0,0.21979626]
[1732048094365,0.0017134,92973.0,92972.0,0.064535]
[1732048096357,0.0017134,92973.0,92972.0,0.17359755]
[1732048097544,0.0017134,92973.0,92972.0,0.18359755]
[1732048098272,0.0017134,92973.0,92972.0,0.19559755]
[1732048098535,0.0001758,93005.0,93004.0,0.064513]
[1732048099239,0.0001758,93005.0,92987.0,0.19471033]
[1732048099492,0.0001758,93005.0,92999.0,0.064516]
[1732048099983,0.0001758,93005.0,93002.0,0.064514]
[1732048100474,0.0001758,93005.0,93004.0,0.064513]
[1732048102163,0.2466978,93024.0,93021.0,0.0645]
[1732048102409,0.2466978,93024.0,92998.0,0.064517]
[1732048102410,0.03517145,93024.0,93022.0,0.0645]
[1732048102890,0.0008551,93027.0,92999.0,0.064516]
[1732048102891,0.0008551,93027.0,93026.0,0.064498]
[1732048103573,0.03575606,93027.0,93026.0,0.064498]
[1732048103584,0.0008551,93027.0,93026.0,0.064498]
[1732048105265,0.0008551,93027.0,93026.0,0.24920833]